[Event "Qatar Masters-B 2024"]
[Site "Doha"]
[Date "2024.12.10"]
[Round "7.7"]
[White "Araoune, Saadi"]
[Black "Abdulrahim, Salem"]
[Result "1-0"]
[ECO "D38"]
[WhiteElo "2085"]
[BlackElo "1858"]
[Annotator "NA RC"]
[PlyCount "113"]
[EventDate "2024.11.24"]
[EventType "swiss"]
[EventCountry "QAT"]
[SourceTitle "playchess.com"]
[Source "ChessBase"]
[SourceQuality "1"]
[TimeControl "40/5400+30:1800+30"]

1. d4 {[%emt 0:00:03]} d5 {[%emt 0:00:05]} 2. c4 {[%emt 0:00:04]} e6 {[%emt 0:00:05]} 3. Nc3 {[%emt 0:00:04]} Nf6 {[%emt 0:00:06]} 4. Nf3 {[%emt 0:00:04]} Bb4 {[%emt 0:00:34]} 5. cxd5 {[%emt 0:00:17]} exd5 {[%emt 0:00:07]} 6. Bg5 {[%emt 0:00:03]} h6 {[%emt 0:00:19]} 7. Bh4 {[%emt 0:00:05]} g5 {[%emt 0:00:30]} 8. Bg3 {[%emt 0:00:04]} Ne4 {[%emt 0:00:45]} 9. Nd2 {[%emt 0:00:06]} Nxc3 {[%emt 0:09:17]} 10. bxc3 {[%emt 0:00:04]} Bxc3 {[%emt 0:00:32]} 11. Rc1 {[%emt 0:00:06]} Ba5 {[%emt 0:00:27]} 12. e3 {[%emt 0:02:02]} Bf5 {[%emt 0:17:07]} 13. Be2 {[%emt 0:07:13]} Nc6 {[%emt 0:03:08]} 14. O-O {[%emt 0:01:51]} Bxd2 {[%emt 0:03:06]} 15. Qxd2 {[%emt 0:00:05]} h5 {[%emt 0:00:53]} 16. f3 {[%emt 0:04:18]} h4 {[%emt 0:07:02]} 17. Bf2 {[%emt 0:01:46]} Qd6 {[%emt 0:01:29]} 18. e4 {[%emt 0:18:05]} dxe4 {[%emt 0:02:09]} 19. Qxg5 {[%emt 0:08:19]} Qg6 {[%emt 0:07:25]} 20. Qxg6 {[%emt 0:01:22]} Bxg6 {[%emt 0:01:11]} 21. d5 {[%emt 0:05:45]} Ne7 {[%emt 0:14:12]} 22. Rxc7 {[%emt 0:01:15]} Nxd5 {[%emt 0:00:33]} 23. Bb5+ {[%emt 0:00:27]} Kf8 {[%emt 0:00:27]} 24. Bc5+ {[%emt 0:01:13]} Kg8 {[%emt 0:00:12]} 25. Rxb7 {[%emt 0:01:55]} e3 {[%emt 0:02:56]} 26. Bd4 {[%emt 0:06:11]} Rh5 {[%emt 0:00:54]} 27. Re1 {[%emt 0:03:05]} Rg5 {[%emt 0:19:35]} 28. Bxe3 {[%emt 0:08:21]} Nxe3 {[%emt 0:00:13]} 29. Rxe3 {[%emt 0:00:05]} a6 {[%emt 0:00:16]} 30. Bc4 {[%emt 0:00:34]} Rc5 {[%emt 0:00:41]} 31. Bb3 {[%emt 0:03:01]} Rd8 {[%emt 0:00:14]} 32. h3 {[%emt 0:02:36]} Rd2 {[%emt 0:01:20]} 33. Rbe7 {[%emt 0:07:23]} Rc1+ {[%emt 0:03:48]} 34. Re1 {[%emt 0:02:51]} Rxe1+ {[%emt 0:00:14]} 35. Rxe1 {[%emt 0:00:01]} Bc2 {[%emt 0:00:39]} 36. Bc4 {[%emt 0:01:06]} Bd3 {[%emt 0:00:02]} 37. Re8+ {[%emt 0:00:22]} Kg7 {[%emt 0:01:13]} 38. Rd8 {[%emt 0:00:06]} Rd1+ {[%emt 0:00:13]} 39. Kh2 {[%emt 0:00:05]} Be2 {[%emt 0:01:09]} 40. Rxd1 {[%emt 0:00:05]} Bxd1 {[%emt 0:00:05]} 41. Bxa6 {[%emt 0:30:04]} Ba4 {[%emt 0:30:15]} 42. g3 {[%emt 0:01:04]} hxg3+ {[%emt 0:01:29]} 43. Kxg3 {[%emt 0:00:01]} Kg6 {[%emt 0:01:37]} 44. Bc4 {[%emt 0:00:38]} f6 {[%emt 0:00:14]} 45. Be6 {[%emt 0:00:07]} Bb5 {[%emt 0:00:59]} 46. Bb3 {[%emt 0:00:54]} Kg5 {[%emt 0:01:03]} 47. a4 {[%emt 0:00:12]} Bc6 {[%emt 0:00:10]} 48. a5 {[%emt 0:00:27]} Bb5 {[%emt 0:00:05]} 49. Bd5 {[%emt 0:00:14]} Ba6 {[%emt 0:00:06]} 50. Be4 {[%emt 0:01:40]} f5 {[%emt 0:02:07]} 51. f4+ {[%emt 0:00:43]} Kf6 {[%emt 0:00:06]} 52. Bf3 {[%emt 0:00:08]} Ke6 {[%emt 0:00:08]} 53. Kf2 {[%emt 0:00:12]} Kd6 {[%emt 0:00:14]} 54. h4 {[%emt 0:00:25]} Bc4 {[%emt 0:01:06]} 55. h5 {[%emt 0:00:34]} Kc5 {[%emt 0:01:02]} 56. h6 {[%emt 0:00:36]} Bg8 {[%emt 0:00:05]} 57. a6 {[%emt 0:00:05]} 1-0

[Event "Qatar Masters-B 2024"]
[Site "Doha"]
[Date "2024.12.10"]
[Round "7.8"]
[White "Achour, Mohamed Anis"]
[Black "Maraimov, Khudoyor"]
[Result "1-0"]
[ECO "A44"]
[WhiteElo "2051"]
[BlackElo "1832"]
[Annotator "NA RC"]
[PlyCount "107"]
[EventDate "2024.11.24"]
[EventType "swiss"]
[EventCountry "QAT"]
[SourceTitle "playchess.com"]
[Source "ChessBase"]
[SourceQuality "1"]
[TimeControl "40/5400+30:1800+30"]

1. d4 {[%emt 0:00:05]} c5 {[%emt 0:00:50]} 2. d5 {[%emt 0:00:10]} e5 {[%emt 0:00:08]} 3. c4 {[%emt 0:00:11]} d6 {[%emt 0:00:14]} 4. Nc3 {[%emt 0:00:08]} g6 {[%emt 0:00:46]} 5. e4 {[%emt 0:01:13]} Bg7 {[%emt 0:00:08]} 6. Nge2 {[%emt 0:00:49]} Ne7 {[%emt 0:03:08]} 7. Ng3 {[%emt 0:01:44]} O-O {[%emt 0:01:39]} 8. Bd3 {[%emt 0:02:00]} f5 {[%emt 0:01:57]} 9. exf5 {[%emt 0:00:36]} Nxf5 {[%emt 0:01:02]} 10. Nge4 {[%emt 0:01:22]} Nd7 {[%emt 0:04:24]} 11. O-O {[%emt 0:01:20]} Nf6 {[%emt 0:04:02]} 12. Nxf6+ {[%emt 0:01:11]} Bxf6 {[%emt 0:02:47]} 13. Ne4 {[%emt 0:00:24]} a6 {[%emt 0:02:39]} 14. a3 {[%emt 0:07:25]} b6 {[%emt 0:03:23]} 15. b4 {[%emt 0:03:07]} Ra7 {[%emt 0:00:50]} 16. bxc5 {[%emt 0:00:55]} bxc5 {[%emt 0:00:09]} 17. Rb1 {[%emt 0:01:05]} Raf7 {[%emt 0:09:37]} 18. Rb8 {[%emt 0:07:12]} Qd7 {[%emt 0:11:18]} 19. Nxf6+ {[%emt 0:26:11]} Rxf6 {[%emt 0:00:07]} 20. Bg5 {[%emt 0:01:49]} R6f7 {[%emt 0:00:27]} 21. Qd2 {[%emt 0:05:35]} Nd4 {[%emt 0:03:44]} 22. Bh6 {[%emt 0:09:06]} Re8 {[%emt 0:09:56]} 23. f3 {[%emt 0:02:23]} Qa4 {[%emt 0:06:32]} 24. Qb2 {[%emt 0:04:42]} Bf5 {[%emt 0:12:53]} 25. Bxf5 {[%emt 0:06:27]} Nxf5 {[%emt 0:08:50]} 26. Rxe8+ {[%emt 0:01:15]} Qxe8 {[%emt 0:00:03]} 27. Bg5 {[%emt 0:00:47]} Kg7 {[%emt 0:00:58]} 28. Re1 {[%emt 0:04:38]} h6 {[%emt 0:00:26]} 29. Bd2 {[%emt 0:00:47]} Qa4 {[%emt 0:01:19]} 30. f4 {[%emt 0:04:50]} Nd4 {[%emt 0:00:49]} 31. fxe5 {[%emt 0:00:38]} dxe5 {[%emt 0:00:12]} 32. Qb8 {[%emt 0:00:58]} Qxc4 {[%emt 0:03:15]} 33. Qxe5+ {[%emt 0:00:29]} Kh7 {[%emt 0:00:08]} 34. d6 {[%emt 0:02:28]} Nc6 {[%emt 0:02:42]} 35. Qe3 {[%emt 0:00:19]} Qd4 {[%emt 0:03:45]} 36. Qxd4 {[%emt 0:00:23]} cxd4 {[%emt 0:00:09]} 37. Rc1 {[%emt 0:00:32]} Ne5 {[%emt 0:00:59]} 38. Rc5 {[%emt 0:00:40]} Nd3 {[%emt 0:02:22]} 39. Rc7 {[%emt 0:00:33]} Ne5 {[%emt 0:00:24]} 40. Rxf7+ {[%emt 0:00:32]} Nxf7 {[%emt 0:00:01]} 41. d7 {[%emt 0:30:06]} Kg7 {[%emt 0:30:28]} 42. Ba5 {[%emt 0:00:06]} d3 {[%emt 0:00:12]} 43. Kf2 {[%emt 0:00:08]} d2 {[%emt 0:00:43]} 44. Ke2 {[%emt 0:00:17]} d1=Q+ {[%emt 0:00:20]} 45. Kxd1 {[%emt 0:00:04]} Kf6 {[%emt 0:00:08]} 46. d8=Q+ {[%emt 0:00:05]} Nxd8 {[%emt 0:00:30]} 47. Bxd8+ {[%emt 0:00:30]} Kf5 {[%emt 0:00:00]} 48. Ke2 {[%emt 0:00:00]} Ke4 {[%emt 0:00:00]} 49. Bb6 {[%emt 0:00:00]} g5 {[%emt 0:00:00]} 50. Be3 {[%emt 0:00:17]} Kf5 {[%emt 0:00:01]} 51. Kf3 {[%emt 0:00:09]} g4+ {[%emt 0:00:07]} 52. Kg3 {[%emt 0:00:06]} h5 {[%emt 0:00:05]} 53. Kh4 {[%emt 0:00:11]} Kg6 {[%emt 0:00:01]} 54. Bd2 {[%emt 0:00:10]} 1-0

[Event "Qatar Masters-B 2024"]
[Site "Doha"]
[Date "2024.12.10"]
[Round "7.9"]
[White "Adeimi, Michel"]
[Black "Balanandan Ayyappan"]
[Result "1/2-1/2"]
[ECO "B07"]
[WhiteElo "2004"]
[BlackElo "1779"]
[Annotator "NA RC"]
[PlyCount "88"]
[EventDate "2024.11.24"]
[EventType "swiss"]
[EventCountry "QAT"]
[SourceTitle "playchess.com"]
[Source "ChessBase"]
[SourceQuality "1"]
[TimeControl "40/5400+30:1800+30"]

1. e4 {[%emt 0:00:12]} d6 {[%emt 0:00:11]} 2. d4 {[%emt 0:00:17]} Nf6 {[%emt 0:00:10]} 3. Nc3 {[%emt 0:00:07]} g6 {[%emt 0:00:03]} 4. h4 {[%emt 0:00:39]} h5 {[%emt 0:00:09]} 5. Nf3 {[%emt 0:00:25]} Bg7 {[%emt 0:00:06]} 6. Ng5 {[%emt 0:00:12]} c6 {[%emt 0:00:36]} 7. Be2 {[%emt 0:00:19]} Qc7 {[%emt 0:00:16]} 8. Be3 {[%emt 0:00:25]} Nbd7 {[%emt 0:01:07]} 9. Qd2 {[%emt 0:02:25]} e5 {[%emt 0:03:16]} 10. dxe5 {[%emt 0:08:36]} dxe5 {[%emt 0:12:23]} 11. f3 {[%emt 0:00:56]} b5 {[%emt 0:03:01]} 12. Bxb5 {[%emt 0:09:19]} O-O {[%emt 0:11:25]} 13. Bc4 {[%emt 0:02:36]} Nb6 {[%emt 0:03:11]} 14. Bb3 {[%emt 0:00:12]} Ba6 {[%emt 0:10:34]} 15. Qf2 {[%emt 0:11:53]} Nc4 {[%emt 0:08:01]} 16. Bc5 {[%emt 0:05:16]} Qa5 {[%emt 0:03:15]} 17. Bxf8 {[%emt 0:06:46]} Bxf8 {[%emt 0:01:10]} 18. Bxc4 {[%emt 0:00:44]} Bxc4 {[%emt 0:02:35]} 19. Rd1 {[%emt 0:00:35]} Rb8 {[%emt 0:05:14]} 20. Qd2 {[%emt 0:03:10]} Rxb2 {[%emt 0:03:05]} 21. Kf2 {[%emt 0:01:40]} Bb4 {[%emt 0:06:16]} 22. Qd8+ {[%emt 0:00:45]} Qxd8 {[%emt 0:00:28]} 23. Rxd8+ {[%emt 0:00:07]} Kg7 {[%emt 0:00:04]} 24. Nd1 {[%emt 0:01:05]} Rxc2+ {[%emt 0:06:05]} 25. Kg3 {[%emt 0:00:14]} Bxa2 {[%emt 0:00:34]} 26. Nf2 {[%emt 0:01:32]} Bc4 {[%emt 0:04:52]} 27. Rhd1 {[%emt 0:05:25]} Bc5 {[%emt 0:09:17]} 28. R1d2 {[%emt 0:06:49]} Rxd2 {[%emt 0:01:09]} 29. Rxd2 {[%emt 0:00:16]} Bd4 {[%emt 0:01:27]} 30. f4 {[%emt 0:01:16]} Be3 {[%emt 0:00:26]} 31. Rd6 {[%emt 0:00:37]} Bxf4+ {[%emt 0:01:04]} 32. Kf3 {[%emt 0:00:05]} Bb5 {[%emt 0:01:10]} 33. Nd3 {[%emt 0:00:10]} Bxd3 {[%emt 0:00:50]} 34. Rxd3 {[%emt 0:00:10]} Bxg5 {[%emt 0:00:06]} 35. hxg5 {[%emt 0:00:14]} Nh7 {[%emt 0:00:01]} 36. Rc3 {[%emt 0:00:50]} Nxg5+ {[%emt 0:00:07]} 37. Ke3 {[%emt 0:00:06]} h4 {[%emt 0:00:31]} 38. Rxc6 {[%emt 0:00:21]} h3 {[%emt 0:00:26]} 39. gxh3 {[%emt 0:00:32]} Nxh3 {[%emt 0:00:02]} 40. Ra6 {[%emt 0:01:13]} f5 {[%emt 0:00:48]} 41. Rxa7+ {[%emt 0:36:12]} Kf6 {[%emt 0:30:11]} 42. Ra6+ {[%emt 0:00:18]} Kf7 {[%emt 0:00:44]} 43. Ra7+ {[%emt 0:02:12]} Kf6 {[%emt 0:00:08]} 44. Ra6+ {[%emt 0:00:17]} Kf7 {[%emt 0:00:43]} 1/2-1/2

[Event "Qatar Masters-B 2024"]
[Site "Doha"]
[Date "2024.12.10"]
[Round "7.10"]
[White "Amulya Guruprasad"]
[Black "Gyana Sai Santhosh M"]
[Result "0-1"]
[ECO "C83"]
[WhiteElo "1718"]
[BlackElo "2090"]
[Annotator "NA RC"]
[PlyCount "86"]
[EventDate "2024.11.24"]
[EventType "swiss"]
[EventCountry "QAT"]
[SourceTitle "playchess.com"]
[Source "ChessBase"]
[SourceQuality "1"]
[TimeControl "40/5400+30:1800+30"]

1. e4 {[%emt 0:00:01]} e5 {[%emt 0:00:22]} 2. Nf3 {[%emt 0:00:05]} Nc6 {[%emt 0:00:09]} 3. Bb5 {[%emt 0:00:03]} a6 {[%emt 0:00:09]} 4. Ba4 {[%emt 0:00:02]} Nf6 {[%emt 0:00:07]} 5. O-O {[%emt 0:00:03]} Nxe4 {[%emt 0:00:24]} 6. d4 {[%emt 0:00:06]} Be7 {[%emt 0:00:37]} 7. Re1 {[%emt 0:06:31]} b5 {[%emt 0:00:25]} 8. Bb3 {[%emt 0:07:11]} d5 {[%emt 0:00:14]} 9. dxe5 {[%emt 0:00:08]} Be6 {[%emt 0:00:15]} 10. c3 {[%emt 0:00:04]} O-O {[%emt 0:00:31]} 11. Nbd2 {[%emt 0:04:51]} Nc5 {[%emt 0:00:31]} 12. Nd4 {[%emt 0:00:33]} Nxd4 {[%emt 0:02:07]} 13. cxd4 {[%emt 0:00:04]} Nd3 {[%emt 0:00:08]} 14. Re3 {[%emt 0:00:13]} Nxc1 {[%emt 0:02:00]} 15. Rxc1 {[%emt 0:00:04]} a5 {[%emt 0:07:01]} 16. f4 {[%emt 0:09:23]} c5 {[%emt 0:04:49]} 17. Bc2 {[%emt 0:17:53]} cxd4 {[%emt 0:22:19]} 18. Rg3 {[%emt 0:02:18]} f5 {[%emt 0:09:10]} 19. exf6 {[%emt 0:05:57]} Rxf6 {[%emt 0:01:35]} 20. Qh5 {[%emt 0:01:34]} h6 {[%emt 0:01:55]} 21. Re1 {[%emt 0:07:36]} Bf7 {[%emt 0:15:58]} 22. Qg4 {[%emt 0:05:38]} Bf8 {[%emt 0:02:14]} 23. Nf3 {[%emt 0:05:38]} Qc8 {[%emt 0:05:29]} 24. Qh4 {[%emt 0:01:45]} Re6 {[%emt 0:12:41]} 25. Bh7+ {[%emt 0:10:34]} Kh8 {[%emt 0:04:37]} 26. Rd1 {[%emt 0:07:05]} Kxh7 {[%emt 0:00:58]} 27. Ng5+ {[%emt 0:00:04]} Kg8 {[%emt 0:00:06]} 28. Nxe6 {[%emt 0:00:04]} Qxe6 {[%emt 0:00:22]} 29. f5 {[%emt 0:00:10]} Qxf5 {[%emt 0:03:15]} 30. Qxh6 {[%emt 0:00:38]} Re8 {[%emt 0:01:59]} 31. Rf1 {[%emt 0:04:25]} Qe6 {[%emt 0:00:26]} 32. Qh4 {[%emt 0:01:58]} Qe4 {[%emt 0:01:33]} 33. Qf6 {[%emt 0:00:07]} Re7 {[%emt 0:00:48]} 34. Qg5 {[%emt 0:01:53]} Re5 {[%emt 0:00:59]} 35. Qf6 {[%emt 0:00:29]} Re7 {[%emt 0:00:01]} 36. Qg5 {[%emt 0:00:02]} Be6 {[%emt 0:00:39]} 37. Rf4 {[%emt 0:01:46]} Qe1+ {[%emt 0:00:30]} 38. Rf1 {[%emt 0:00:01]} Qe4 {[%emt 0:00:01]} 39. Rf4 {[%emt 0:00:01]} Qc2 {[%emt 0:00:42]} 40. Qf6 {[%emt 0:01:00]} Rf7 {[%emt 0:01:20]} 41. Qxe6 {[%emt 0:30:44]} Qc1+ {[%emt 0:30:05]} 42. Kf2 {[%emt 0:01:01]} Qxf4+ {[%emt 0:00:10]} 43. Ke2 {[%emt 0:00:30]} Qe4+ {[%emt 0:00:34]} 0-1

[Event "Qatar Masters-B 2024"]
[Site "Doha"]
[Date "2024.12.10"]
[Round "7.11"]
[White "Albadri Sattar"]
[Black "Demirkol, Kerim Calvelo"]
[Result "1-0"]
[ECO "E92"]
[WhiteElo "2139"]
[BlackElo "1859"]
[Annotator "NA RC"]
[PlyCount "89"]
[EventDate "2024.11.24"]
[EventType "swiss"]
[EventCountry "QAT"]
[SourceTitle "playchess.com"]
[Source "ChessBase"]
[SourceQuality "1"]
[TimeControl "40/5400+30:1800+30"]

1. d4 {[%emt 0:00:32]} Nf6 {[%emt 0:00:15]} 2. c4 {[%emt 0:00:07]} g6 {[%emt 0:00:12]} 3. Nc3 {[%emt 0:00:09]} Bg7 {[%emt 0:00:09]} 4. e4 {[%emt 0:00:07]} d6 {[%emt 0:00:17]} 5. Nf3 {[%emt 0:00:17]} O-O {[%emt 0:00:16]} 6. Be2 {[%emt 0:00:08]} e5 {[%emt 0:00:23]} 7. dxe5 {[%emt 0:00:34]} dxe5 {[%emt 0:00:13]} 8. Qxd8 {[%emt 0:00:03]} Rxd8 {[%emt 0:00:10]} 9. Bg5 {[%emt 0:00:06]} Re8 {[%emt 0:01:55]} 10. Nd5 {[%emt 0:01:30]} Nxd5 {[%emt 0:00:12]} 11. cxd5 {[%emt 0:00:10]} c6 {[%emt 0:14:07]} 12. Bc4 {[%emt 0:00:45]} cxd5 {[%emt 0:00:37]} 13. Bxd5 {[%emt 0:00:10]} Nc6 {[%emt 0:00:07]} 14. O-O-O {[%emt 0:01:36]} Bg4 {[%emt 0:04:18]} 15. Kb1 {[%emt 0:00:45]} Nd4 {[%emt 0:10:26]} 16. Rd3 {[%emt 0:01:58]} Bxf3 {[%emt 0:00:55]} 17. gxf3 {[%emt 0:00:09]} h6 {[%emt 0:09:47]} 18. Be3 {[%emt 0:03:35]} Re7 {[%emt 0:01:10]} 19. f4 {[%emt 0:00:45]} Nc6 {[%emt 0:01:21]} 20. a3 {[%emt 0:01:41]} Rd8 {[%emt 0:02:48]} 21. Rhd1 {[%emt 0:07:05]} Kh7 {[%emt 0:01:21]} 22. h4 {[%emt 0:10:09]} Bf6 {[%emt 0:05:01]} 23. h5 {[%emt 0:05:07]} gxh5 {[%emt 0:00:33]} 24. f5 {[%emt 0:05:49]} Red7 {[%emt 0:08:30]} 25. Rh1 {[%emt 0:22:39]} h4 {[%emt 0:00:33]} 26. f4 {[%emt 0:00:21]} exf4 {[%emt 0:10:06]} 27. Bxf4 {[%emt 0:00:31]} Ne7 {[%emt 0:06:40]} 28. Rhd1 {[%emt 0:06:21]} Nxd5 {[%emt 0:00:00]} 29. Rxd5 {[%emt 0:01:35]} Rxd5 {[%emt 0:00:00]} 30. exd5 {[%emt 0:00:39]} Rd7 {[%emt 0:00:00]} 31. d6 {[%emt 0:01:04]} Bg5 {[%emt 0:00:00]} 32. Be5 {[%emt 0:00:45]} f6 {[%emt 0:01:10]} 33. Bh2 {[%emt 0:00:46]} Kg7 {[%emt 0:06:23]} 34. Re1 {[%emt 0:05:42]} Kf8 {[%emt 0:05:06]} 35. Kc2 {[%emt 0:01:33]} Rd8 {[%emt 0:02:32]} 36. Kd3 {[%emt 0:00:15]} Rd7 {[%emt 0:01:55]} 37. Kd4 {[%emt 0:00:35]} Kf7 {[%emt 0:00:52]} 38. Kd5 {[%emt 0:00:13]} Kf8 {[%emt 0:00:44]} 39. Re2 {[%emt 0:00:36]} Rd8 {[%emt 0:02:20]} 40. Rc2 {[%emt 0:02:18]} Be3 {[%emt 0:03:04]} 41. Ke6 {[%emt 0:42:40]} Bb6 {[%emt 0:31:30]} 42. d7 {[%emt 0:00:13]} Kg7 {[%emt 0:00:12]} 43. Bc7 {[%emt 0:02:04]} Bxc7 {[%emt 0:00:19]} 44. Rxc7 {[%emt 0:00:02]} h3 {[%emt 0:00:12]} 45. Rc3 {[%emt 0:00:21]} 1-0

[Event "Qatar Masters-B 2024"]
[Site "Doha"]
[Date "2024.12.10"]
[Round "7.12"]
[White "Albin Sajan"]
[Black "Abel Sajan"]
[Result "1/2-1/2"]
[ECO "A30"]
[WhiteElo "1804"]
[BlackElo "2053"]
[Annotator "NA RC"]
[PlyCount "60"]
[EventDate "2024.11.24"]
[EventType "swiss"]
[EventCountry "QAT"]
[SourceTitle "playchess.com"]
[Source "ChessBase"]
[SourceQuality "1"]
[TimeControl "40/5400+30:1800+30"]

1. Nf3 {[%emt 0:00:08]} Nf6 {[%emt 0:00:48]} 2. b3 {[%emt 0:00:20]} g6 {[%emt 0:00:28]} 3. Bb2 {[%emt 0:00:05]} Bg7 {[%emt 0:00:04]} 4. g3 {[%emt 0:00:08]} b6 {[%emt 0:00:09]} 5. Bg2 {[%emt 0:00:04]} Bb7 {[%emt 0:00:10]} 6. O-O {[%emt 0:03:25]} O-O {[%emt 0:00:09]} 7. c4 {[%emt 0:00:59]} c5 {[%emt 0:00:36]} 8. d4 {[%emt 0:05:44]} cxd4 {[%emt 0:05:20]} 9. Qxd4 {[%emt 0:00:55]} d6 {[%emt 0:06:58]} 10. Rd1 {[%emt 0:01:34]} Na6 {[%emt 0:05:28]} 11. Qh4 {[%emt 0:01:42]} h6 {[%emt 0:18:32]} 12. Na3 {[%emt 0:11:19]} Nc5 {[%emt 0:08:03]} 13. Rac1 {[%emt 0:03:00]} Rb8 {[%emt 0:03:38]} 14. Bxf6 {[%emt 0:03:09]} Bxf6 {[%emt 0:00:27]} 15. Qxh6 {[%emt 0:00:24]} Bxf3 {[%emt 0:00:45]} 16. Bxf3 {[%emt 0:01:04]} Bb2 {[%emt 0:00:27]} 17. Nb5 {[%emt 0:01:08]} Bxc1 {[%emt 0:01:54]} 18. Rxc1 {[%emt 0:00:21]} Qd7 {[%emt 0:07:16]} 19. Nd4 {[%emt 0:01:58]} Rfc8 {[%emt 0:10:39]} 20. h4 {[%emt 0:03:16]} e5 {[%emt 0:05:56]} 21. h5 {[%emt 0:02:14]} Qh3 {[%emt 0:09:25]} 22. Qg5 {[%emt 0:01:45]} Ne6 {[%emt 0:03:24]} 23. Nxe6 {[%emt 0:00:58]} Qxe6 {[%emt 0:00:13]} 24. Bd5 {[%emt 0:01:00]} Qf5 {[%emt 0:00:32]} 25. Qxg6+ {[%emt 0:00:05]} Qxg6 {[%emt 0:00:43]} 26. hxg6 {[%emt 0:00:04]} b5 {[%emt 0:01:09]} 27. gxf7+ {[%emt 0:01:20]} Kg7 {[%emt 0:00:18]} 28. e4 {[%emt 0:02:40]} bxc4 {[%emt 0:00:52]} 29. Rxc4 {[%emt 0:00:36]} Rxc4 {[%emt 0:01:52]} 30. Bxc4 {[%emt 0:00:04]} Kf6 {[%emt 0:00:46]} 1/2-1/2

[Event "Qatar Masters-B 2024"]
[Site "Doha"]
[Date "2024.12.10"]
[Round "7.13"]
[White "Elarcosa, Rommel T."]
[Black "Khalifa Essa, Albalooshi"]
[Result "1-0"]
[ECO "D04"]
[WhiteElo "1645"]
[BlackElo "2050"]
[Annotator "NA RC"]
[PlyCount "85"]
[EventDate "2024.11.24"]
[EventType "swiss"]
[EventCountry "QAT"]
[SourceTitle "playchess.com"]
[Source "ChessBase"]
[SourceQuality "1"]
[TimeControl "40/5400+30:1800+30"]

1. d4 {[%emt 0:00:01]} Nf6 {[%emt 0:00:08]} 2. Nf3 {[%emt 0:00:05]} d5 {[%emt 0:00:06]} 3. e3 {[%emt 0:00:06]} c5 {[%emt 0:00:05]} 4. dxc5 {[%emt 0:01:57]} Qa5+ {[%emt 0:02:32]} 5. Nbd2 {[%emt 0:02:39]} Qxc5 {[%emt 0:00:45]} 6. Nb3 {[%emt 0:03:39]} Qc7 {[%emt 0:00:07]} 7. Bb5+ {[%emt 0:01:12]} Nc6 {[%emt 0:00:09]} 8. h3 {[%emt 0:04:18]} e5 {[%emt 0:02:13]} 9. O-O {[%emt 0:00:58]} Be7 {[%emt 0:04:05]} 10. c4 {[%emt 0:01:15]} dxc4 {[%emt 0:02:22]} 11. Bxc4 {[%emt 0:00:17]} O-O {[%emt 0:00:05]} 12. Qe2 {[%emt 0:03:58]} e4 {[%emt 0:03:15]} 13. Nfd4 {[%emt 0:01:55]} Ne5 {[%emt 0:00:10]} 14. Nd2 {[%emt 0:00:43]} a6 {[%emt 0:00:48]} 15. a3 {[%emt 0:00:48]} b5 {[%emt 0:00:54]} 16. Ba2 {[%emt 0:00:17]} Bb7 {[%emt 0:01:12]} 17. f3 {[%emt 0:07:30]} Nh5 {[%emt 0:02:18]} 18. Nxe4 {[%emt 0:19:20]} Bxe4 {[%emt 0:01:22]} 19. fxe4 {[%emt 0:00:06]} Ng3 {[%emt 0:00:07]} 20. Qd1 {[%emt 0:00:35]} Nxf1 {[%emt 0:00:21]} 21. Qxf1 {[%emt 0:01:13]} Rac8 {[%emt 0:03:21]} 22. Bd2 {[%emt 0:00:48]} Bf6 {[%emt 0:01:20]} 23. Bc3 {[%emt 0:00:26]} Rfe8 {[%emt 0:00:52]} 24. Bd5 {[%emt 0:00:24]} Nc4 {[%emt 0:01:12]} 25. Qf2 {[%emt 0:03:15]} Nb6 {[%emt 0:03:24]} 26. Bb3 {[%emt 0:04:23]} Rxe4 {[%emt 0:00:25]} 27. Bc2 {[%emt 0:00:30]} Re5 {[%emt 0:05:10]} 28. Nf3 {[%emt 0:04:43]} Rc5 {[%emt 0:01:03]} 29. Rd1 {[%emt 0:10:20]} Bxc3 {[%emt 0:01:05]} 30. bxc3 {[%emt 0:00:09]} Rxc3 {[%emt 0:00:06]} 31. Nd4 {[%emt 0:00:37]} g6 {[%emt 0:01:37]} 32. Bb3 {[%emt 0:03:03]} Nc4 {[%emt 0:01:00]} 33. Rf1 {[%emt 0:00:34]} Qe7 {[%emt 0:00:53]} 34. e4 {[%emt 0:00:47]} Rd8 {[%emt 0:01:04]} 35. Nc6 {[%emt 0:00:24]} Qc7 {[%emt 0:04:51]} 36. Nxd8 {[%emt 0:00:21]} Rxb3 {[%emt 0:01:47]} 37. Nxf7 {[%emt 0:00:45]} Qe7 {[%emt 0:01:26]} 38. Qd4 {[%emt 0:07:21]} Qxf7 {[%emt 0:04:51]} 39. Rxf7 {[%emt 0:00:19]} Kxf7 {[%emt 0:00:04]} 40. a4 {[%emt 0:00:36]} Rb4 {[%emt 0:08:54]} 41. axb5 {[%emt 0:30:44]} axb5 {[%emt 0:30:06]} 42. Qd7+ {[%emt 0:00:25]} Kf8 {[%emt 0:01:16]} 43. Qxh7 {[%emt 0:00:14]} 1-0